bitfinex/quotes_BTCUSD_20250803
["timestamp","ask_amount","ask_price","bid_price","bid_amount"]
[1754194728378,0.53671978,113770.0,113760.0,0.502917]
[1754194728565,4.90452708,113770.0,113760.0,0.59175456]
[1754194730155,4.91907994,113770.0,113760.0,0.59175456]
[1754194730452,4.39584016,113770.0,113760.0,0.59175456]
[1754194730686,4.90559994,113770.0,113760.0,0.59175456]
[1754194730901,4.90559994,113770.0,113760.0,0.61480456]
[1754194731575,4.38236016,113770.0,113760.0,0.61480456]
[1754194731791,4.90559994,113770.0,113760.0,0.61480456]
[1754194732412,4.38236016,113770.0,113760.0,0.61480456]
[1754194732630,4.90559994,113770.0,113760.0,0.61480456]
[1754194734168,4.90559994,113770.0,113760.0,0.61803456]
[1754194737717,5.57579972,113770.0,113760.0,0.003]
[1754194737930,5.59558423,113770.0,113760.0,0.003]
[1754194738374,5.6120548,113770.0,113760.0,0.003]
[1754194738900,5.49552296,113770.0,113760.0,0.003]
[1754194739517,5.47021166,113770.0,113760.0,0.003]
[1754194740617,1.14147796,113770.0,113760.0,0.003]
[1754194740821,5.50928782,113770.0,113760.0,0.003]
[1754194741032,5.68508108,113770.0,113760.0,0.003]
[1754194741246,5.7040501,113770.0,113760.0,0.003]
[1754194741931,5.7040501,113770.0,113760.0,0.002]
[1754194742150,4.354045,113760.0,113740.0,0.34004759]
[1754194742381,4.95249886,113750.0,113740.0,0.34004759]
[1754194742614,4.9742144,113750.0,113740.0,0.34004759]
[1754194743094,4.98798082,113750.0,113740.0,0.34004759]
[1754194744283,4.97974528,113750.0,113740.0,0.34004759]
[1754194744759,4.97974528,113750.0,113740.0,0.34204759]
[1754194744990,4.96597886,113750.0,113740.0,0.34204759]
[1754194745206,4.96597886,113750.0,113740.0,0.34304759]
[1754194746387,4.501005,113750.0,113740.0,0.34304759]
[1754194746617,4.96597886,113750.0,113740.0,0.34304759]
[1754194747272,4.96597886,113750.0,113740.0,0.36918344]
[1754194747767,4.96597886,113750.0,113740.0,0.34304759]
[1754194748241,4.487525,113750.0,113740.0,0.36796759]
[1754194748452,4.95249886,113750.0,113740.0,0.36796759]
[1754194748662,4.95249886,113750.0,113740.0,0.00304759]
[1754194748867,4.96597886,113750.0,113740.0,0.34304759]
[1754194750945,0.61193386,113750.0,113740.0,0.34304759]
[1754194751151,4.487525,113750.0,113740.0,0.37113759]
[1754194751359,4.95249886,113750.0,113740.0,0.37113759]
[1754194751942,0.59845386,113750.0,113740.0,0.37113759]
[1754194752149,4.95249886,113750.0,113740.0,0.37113759]
[1754194753486,4.95249886,113750.0,113740.0,0.34304759]
[1754194753644,4.96597886,113750.0,113740.0,0.34304759]
[1754194754966,0.61193386,113750.0,113740.0,0.34304759]
[1754194755223,4.96597886,113750.0,113740.0,0.34304759]
[1754194756421,4.501005,113750.0,113740.0,0.34304759]
[1754194756626,4.96597886,113750.0,113740.0,0.34304759]
[1754194758120,0.59845386,113750.0,113740.0,0.36796759]
[1754194758331,4.95249886,113750.0,113740.0,0.36796759]
[1754194760804,4.95249886,113750.0,113740.0,0.37113759]
[1754194761226,0.59845386,113750.0,113740.0,0.37113759]
[1754194761406,4.95249886,113750.0,113740.0,0.37113759]
[1754194762861,5.01066967,113750.0,113740.0,0.37113759]
[1754194763188,5.0188835,113750.0,113740.0,0.37113759]
[1754194765326,0.6648385,113750.0,113740.0,0.37113759]
[1754194765538,5.0188835,113750.0,113740.0,0.37113759]
[1754194766280,5.03533993,113750.0,113740.0,0.37113759]
[1754194766995,0.68129493,113750.0,113740.0,0.37113759]
[1754194767178,4.89729225,113750.0,113740.0,0.37113759]
[1754194767901,4.37871526,113750.0,113740.0,0.37113759]
[1754194768080,4.90185993,113750.0,113740.0,0.37113759]
[1754194768510,5.03525993,113750.0,113740.0,0.37113759]
[1754194768860,5.03528759,113750.0,113740.0,0.37113759]
[1754194769467,0.15809792,113750.0,113740.0,0.37113759]
[1754194769677,5.03528759,113750.0,113740.0,0.42160735]
[1754194770285,5.03528759,113750.0,113740.0,0.37113759]
[1754194770487,0.68124259,113750.0,113740.0,0.37113759]
[1754194770699,5.03528759,113750.0,113740.0,0.37113759]
[1754194771665,5.03533242,113750.0,113740.0,0.37113759]
[1754194772282,5.03533242,113750.0,113740.0,0.37329759]
[1754194774533,5.03533242,113750.0,113740.0,0.42398335]
[1754194774965,5.03533242,113750.0,113740.0,0.37329759]
[1754194775180,4.90193242,113750.0,113740.0,0.37329759]
[1754194776473,4.37878775,113750.0,113740.0,0.37329759]
[1754194776836,4.90193242,113750.0,113740.0,0.37329759]
[1754194777286,4.88543725,113750.0,113740.0,0.37329759]
[1754194777497,4.88543725,113750.0,113740.0,0.46213515]
[1754194780258,4.88543361,113750.0,113740.0,0.46213515]
[1754194781899,4.88543361,113750.0,113740.0,0.98527982]
[1754194781900,4.36228894,113750.0,113740.0,0.98527982]
[1754194782042,0.67109753,113770.0,113740.0,1.00272884]
[1754194782386,4.354045,113760.0,113750.0,0.1628078]
[1754194782627,4.88543094,113760.0,113750.0,0.25160756]
[1754194782838,4.87718967,113760.0,113750.0,0.25160756]
[1754194784563,4.87718967,113760.0,113750.0,0.27804656]
[1754194784955,4.354045,113760.0,113750.0,0.28204656]
[1754194787460,0.62355899,113770.0,113760.0,0.34]
[1754194787604,4.97760399,113770.0,113760.0,0.42941466]
[1754194788649,4.97760399,113770.0,113760.0,0.43141466]
[1754194790873,0.62355899,113770.0,113760.0,0.43141466]
[1754194791177,4.97760399,113770.0,113760.0,0.43141466]
[1754194794126,0.62355899,113770.0,113760.0,0.36921]
[1754194794344,4.97760399,113770.0,113760.0,0.36921]
[1754194795595,4.7819535,113770.0,113760.0,0.36921]
[1754194796653,4.487405,113770.0,113760.0,0.37137]
[1754194796810,4.95216378,113770.0,113760.0,0.37137]
[1754194797017,4.95216378,113770.0,113760.0,0.421847]
[1754194797981,4.97854997,113770.0,113760.0,0.421847]
[1754194799577,4.51379119,113770.0,113760.0,0.421847]
[1754194799942,4.51375119,113770.0,113760.0,0.421847]
[1754194800737,4.97850997,113770.0,113760.0,0.421847]
[1754194801742,4.51375119,113770.0,113760.0,0.421847]
[1754194802488,0.15970619,113770.0,113760.0,0.421847]
[1754194802703,4.51375119,113770.0,113760.0,0.421847]
[1754194805684,4.97850997,113770.0,113760.0,0.421847]
[1754194807106,5.03655046,113770.0,113760.0,0.421847]
[1754194811361,4.51375119,113770.0,113760.0,0.421847]
[1754194811564,5.03655046,113770.0,113760.0,0.421847]
[1754194814885,5.03655046,113770.0,113760.0,0.002]
[1754194815135,5.05828108,113770.0,113760.0,0.13532]
[1754194815389,5.05003046,113770.0,113760.0,0.13532]
[1754194815867,5.03655046,113770.0,113760.0,0.13532]
[1754194816419,5.03655046,113770.0,113760.0,0.16014]
[1754194816633,5.03655046,113770.0,113760.0,0.1791178]
[1754194816844,4.51375119,113770.0,113760.0,0.1791178]
[1754194817050,4.51375119,113770.0,113760.0,0.1823178]
[1754194817281,5.03655046,113770.0,113760.0,0.1823178]
[1754194817503,5.03655046,113770.0,113760.0,0.2087558]
[1754194819518,5.03655046,113770.0,113760.0,0.189778]
[1754194822901,5.03655046,113770.0,113760.0,0.056458]
[1754194825617,5.58108389,113770.0,113760.0,0.002]
[1754194825836,5.59759064,113770.0,113760.0,0.342]
[1754194827657,5.62290194,113770.0,113760.0,0.002]
[1754194828499,5.62289223,113770.0,113760.0,0.002]
[1754194828718,5.62289223,113770.0,113760.0,0.001]
[1754194829076,4.354045,113760.0,113750.0,0.34]
[1754194829298,5.55468799,113760.0,113750.0,0.34]
[1754194829913,4.354045,113750.0,113740.0,0.16138759]
[1754194830143,5.01016427,113750.0,113740.0,0.08085065]
[1754194830386,5.01016427,113750.0,113740.0,0.08299065]
[1754194832719,5.01016427,113750.0,113740.0,0.08699065]
[1754194832954,4.487365,113750.0,113740.0,0.08699065]
[1754194833135,5.01016427,113750.0,113740.0,0.08699065]
[1754194835335,5.02364427,113750.0,113740.0,0.00404759]
[1754194835554,5.04895557,113750.0,113740.0,0.00404759]
[1754194836203,5.04895557,113750.0,113740.0,0.00204759]
[1754194836591,5.04895557,113750.0,113740.0,0.00304759]
[1754194837184,0.69491057,113750.0,113740.0,0.00304759]
[1754194837392,5.04895557,113750.0,113740.0,0.00304759]
[1754194837559,5.57175484,113750.0,113740.0,0.00304759]
[1754194837766,5.57998305,113750.0,113740.0,0.00304759]
[1754194837966,5.62288869,113750.0,113740.0,0.00104759]
[1754194838171,1.26884369,113750.0,113740.0,4.759e-05]
[1754194838370,5.62288869,113750.0,113740.0,0.00104759]
[1754194838617,5.62288869,113750.0,113740.0,4.759e-05]
[1754194838940,5.62388869,113750.0,113740.0,4.759e-05]
[1754194840645,5.62588869,113750.0,113740.0,4.759e-05]
[1754194840841,5.04543356,113750.0,113740.0,4.759e-05]
[1754194842476,5.07253336,113750.0,113740.0,4.759e-05]
[1754194845344,0.71848836,113750.0,113740.0,4.759e-05]
[1754194845567,5.07253336,113750.0,113740.0,4.759e-05]
[1754194847440,0.71848836,113750.0,113740.0,4.759e-05]
[1754194847660,5.07253336,113750.0,113740.0,4.759e-05]
[1754194850299,4.90042206,113750.0,113740.0,0.02795759]
[1754194850564,5.03382206,113750.0,113740.0,0.02795759]
[1754194850777,4.87397206,113750.0,113740.0,0.02795759]
[1754194850997,4.49867321,113750.0,113740.0,0.02795759]
[1754194851301,4.96385662,113750.0,113740.0,0.02795759]
[1754194851738,4.96285662,113750.0,113740.0,0.02795759]
[1754194851956,4.96085662,113750.0,113740.0,0.02795759]
[1754194852169,4.97729215,113750.0,113740.0,0.02795759]
[1754194856420,4.97725215,113750.0,113740.0,0.02795759]
[1754194856624,4.97727455,113750.0,113740.0,0.02795759]
[1754194857848,4.97727455,113750.0,113740.0,0.02895759]
[1754194858209,4.97727455,113750.0,113740.0,0.02995759]
[1754194861811,4.97723455,113750.0,113740.0,0.02995759]
[1754194862048,4.37873114,113750.0,113740.0,0.02995759]
[1754194862222,4.51209114,113750.0,113740.0,0.02995759]
[1754194862381,4.37873114,113750.0,113740.0,0.02995759]
[1754194862579,4.51209114,113750.0,113740.0,0.03559785]
[1754194863793,4.51209114,113750.0,113740.0,0.02995759]
[1754194864190,4.37873114,113750.0,113740.0,0.02995759]
[1754194864402,4.36227371,113750.0,113740.0,0.02995759]
[1754194865093,4.36228241,113750.0,113740.0,0.02995759]
[1754194867073,4.36228241,113750.0,113740.0,0.05639959]
[1754194867429,4.36228241,113750.0,113740.0,0.07537555]
[1754194868290,4.354045,113750.0,113740.0,0.07537555]
[1754194871210,0.13336,113760.0,113740.0,0.07537555]
[1754194871434,4.854045,113750.0,113740.0,0.38960555]
[1754194871638,4.354045,113760.0,113740.0,0.38960555]
[1754194871863,4.354045,113750.0,113740.0,0.38960555]
[1754194872266,4.354045,113750.0,113740.0,0.36316355]
[1754194872472,4.354045,113750.0,113740.0,0.38960555]
[1754194872697,4.354045,113750.0,113740.0,0.41527555]
[1754194872907,4.354045,113750.0,113740.0,0.41427555]
[1754194874077,4.354045,113750.0,113740.0,0.41527555]
[1754194875464,4.354045,113750.0,113740.0,0.43272457]
[1754194880821,4.354045,113750.0,113740.0,0.95556916]
[1754194882852,4.354045,113750.0,113740.0,0.89743627]
[1754194885220,0.13336,113760.0,113740.0,0.89743627]
[1754194885425,4.354045,113760.0,113750.0,0.13332]
[1754194885626,4.354045,113760.0,113750.0,0.16096]
[1754194886056,4.354045,113760.0,113750.0,0.24979756]
[1754194887722,4.354045,113760.0,113750.0,0.22215756]
[1754194887932,0.62441789,113770.0,113760.0,0.34]
[1754194888135,4.99194289,113770.0,113760.0,0.34]
[1754194888749,4.367525,113770.0,113760.0,0.34]
[1754194888957,4.367525,113770.0,113760.0,0.36421059]
[1754194889165,4.368525,113770.0,113760.0,0.36421059]
[1754194889487,4.370525,113770.0,113760.0,0.36421059]
[1754194889958,4.503845,113770.0,113760.0,0.36421059]
[1754194890929,4.9685567,113770.0,113760.0,0.36421059]
[1754194891762,5.00398233,113770.0,113760.0,0.36421059]
[1754194891918,5.0122162,113770.0,113760.0,0.36421059]
[1754194892125,0.1934595,113770.0,113760.0,0.36421059]
[1754194892326,5.0122162,113770.0,113760.0,0.36421059]
[1754194894080,5.0122188,113770.0,113760.0,0.36421059]
[1754194894284,5.0122188,113770.0,113760.0,0.34]
[1754194896576,4.9987388,113770.0,113760.0,0.34]
[1754194899457,4.9987388,113770.0,113760.0,0.36392]
[1754194902389,5.0122188,113770.0,113760.0,0.34]
[1754194902637,4.9987388,113770.0,113760.0,0.36392]
[1754194902813,5.05686301,113770.0,113760.0,0.36392]
[1754194903014,5.05686301,113770.0,113760.0,0.36687]
[1754194903436,5.05686301,113770.0,113760.0,0.34]
[1754194903909,5.05686301,113770.0,113760.0,0.36392]
[1754194904318,5.05686301,113770.0,113760.0,0.36687]
[1754194905517,5.0568772,113770.0,113760.0,0.36687]
[1754194906807,5.0568772,113770.0,113760.0,0.38284676]
[1754194907397,5.0568772,113770.0,113760.0,0.40676676]
[1754194907643,5.0568772,113770.0,113760.0,0.40971676]
[1754194909565,5.0568772,113770.0,113760.0,0.36687]
[1754194910853,5.0568772,113770.0,113760.0,0.36896]
[1754194911258,5.05687855,113770.0,113760.0,0.36896]
[1754194916809,5.0568787,113770.0,113760.0,0.36896]
[1754194917644,5.0568787,113770.0,113760.0,0.36687]
[1754194918021,0.7028337,113770.0,113760.0,0.36687]
[1754194918236,5.0568787,113770.0,113760.0,0.36687]
[1754194918644,5.0703587,113770.0,113760.0,0.34]
[1754194918846,4.354045,113760.0,113750.0,0.15916]
[1754194919000,0.52283591,113760.0,113750.0,0.49916]
[1754194919197,0.65615591,113760.0,113750.0,0.55536746]
[1754194920859,5.55476825,113760.0,113750.0,0.34]
[1754194921062,5.55476825,113760.0,113750.0,0.47332]
[1754194922859,5.55476825,113760.0,113750.0,0.34]
[1754194924436,5.54651682,113760.0,113750.0,0.34]
[1754194925893,5.02368091,113760.0,113750.0,0.34]
[1754194926101,5.01020091,113760.0,113750.0,0.34]
[1754194926509,5.01020091,113760.0,113750.0,0.39181836]
[1754194926697,5.01020091,113760.0,113750.0,0.34]
[1754194928915,0.65615591,113760.0,113750.0,0.34]
[1754194929110,5.01020091,113760.0,113750.0,0.36263]
[1754194930051,0.65615591,113760.0,113750.0,0.36263]
[1754194930309,5.01020091,113760.0,113750.0,0.36263]
[1754194930575,5.01020091,113760.0,113750.0,0.37623351]
[1754194931011,5.01020091,113760.0,113750.0,0.37944351]
[1754194931556,5.01020091,113760.0,113750.0,0.38156351]
[1754194934191,4.87688091,113760.0,113750.0,0.38156351]
[1754194934361,4.487365,113760.0,113750.0,0.90439942]
[1754194934780,4.354045,113760.0,113750.0,0.90439942]
[1754194935804,4.354045,113760.0,113750.0,0.90739942]
[1754194936914,4.354045,113760.0,113750.0,0.36696]
[1754194937126,4.87688091,113760.0,113750.0,0.36696]
[1754194937350,5.01016091,113760.0,113750.0,0.47228]
[1754194937571,5.02364091,113760.0,113750.0,0.498721]
[1754194938013,5.54647682,113760.0,113750.0,0.498721]
[1754194938431,5.02364091,113760.0,113750.0,0.500721]
[1754194938627,0.66959591,113760.0,113750.0,0.500721]
[1754194938784,4.9656774,113760.0,113750.0,0.500721]
[1754194939181,4.9656774,113760.0,113750.0,0.367441]
[1754194939614,0.6116324,113760.0,113750.0,0.367441]
[1754194939812,4.9656774,113760.0,113750.0,0.367441]
[1754194940631,4.487325,113760.0,113750.0,0.390071]
[1754194940841,4.9521974,113760.0,113750.0,0.393281]
[1754194941992,4.487325,113760.0,113750.0,0.393281]
[1754194942236,4.9521974,113760.0,113750.0,0.393281]
[1754194943928,4.9521974,113760.0,113750.0,0.44594186]
[1754194944113,4.9521974,113760.0,113750.0,0.44806186]
[1754194944318,4.354045,113760.0,113750.0,0.44806186]
[1754194944525,4.354045,113760.0,113750.0,0.91293426]
[1754194945022,4.354045,113760.0,113750.0,0.44806186]
[1754194951807,4.155946,113760.0,113750.0,0.44806186]
[1754194951997,0.16870563,113770.0,113760.0,0.34]
[1754194952214,4.19961518,113770.0,113760.0,0.58068619]
[1754194952625,4.19961518,113770.0,113760.0,0.60712619]
[1754194953794,4.19961453,113770.0,113760.0,0.60712619]
[1754194954017,4.19961453,113770.0,113760.0,0.60812619]
[1754194954237,4.32465163,113770.0,113760.0,0.60812619]
[1754194954456,4.32465163,113770.0,113760.0,0.60912619]
[1754194956681,4.32465163,113770.0,113760.0,0.53032]
[1754194956908,0.16870563,113770.0,113760.0,0.53032]
[1754194957057,4.32465163,113770.0,113760.0,0.53032]
[1754194957871,4.19137163,113770.0,113760.0,0.5283]
[1754194958079,4.32465163,113770.0,113760.0,0.5283]
[1754194960902,4.84747088,113770.0,113760.0,0.5283]
[1754194961926,4.84747088,113770.0,113760.0,0.53032]
[1754194968301,4.84747088,113770.0,113760.0,0.5283]
[1754194970246,4.85571125,113770.0,113760.0,0.5283]
[1754194972519,4.85571125,113770.0,113760.0,0.53032]
[1754194973254,4.85571125,113770.0,113760.0,0.583352]
[1754194977112,4.332892,113770.0,113760.0,0.583352]
[1754194977288,4.85571125,113770.0,113760.0,0.583352]
[1754194978468,4.84747088,113770.0,113760.0,0.583352]
[1754194978638,4.33289633,113770.0,113760.0,0.583352]
[1754194978774,4.85571558,113770.0,113760.0,0.583352]
[1754194978971,4.84747088,113770.0,113760.0,0.583352]
[1754194979890,0.69152488,113770.0,113760.0,0.583352]
[1754194980837,0.55824488,113770.0,113760.0,0.583352]
[1754194985307,0.03542563,113770.0,113760.0,0.583352]
[1754194985525,0.03542563,113770.0,113760.0,1.10617125]
[1754194985744,4.155946,113770.0,113760.0,1.10617125]
[1754194986365,4.155946,113770.0,113760.0,0.583352]
[1754194986753,0.03500961,113770.0,113760.0,0.583352]
[1754194987192,4.155946,113770.0,113760.0,0.583352]
[1754194989304,4.155946,113780.0,113760.0,1.10617125]
[1754194989489,4.155946,113770.0,113760.0,1.07959125]
[1754194989687,4.155946,113770.0,113760.0,1.05315125]
[1754194990025,4.155946,113770.0,113760.0,1.07958725]
[1754194990230,4.155946,113770.0,113760.0,1.10724725]
[1754194990723,0.03528159,113770.0,113760.0,1.10724725]
[1754194991117,4.155946,113770.0,113760.0,1.10724725]
[1754194994642,4.19201608,113770.0,113760.0,1.10724725]
[1754194994811,0.03607008,113770.0,113760.0,1.10724725]
[1754194995231,4.155946,113770.0,113760.0,1.10724725]
[1754194998412,4.155946,113770.0,113760.0,0.584428]
[1754194998649,4.67876525,113770.0,113760.0,0.584428]
[1754194998856,4.67876525,113770.0,113760.0,0.582408]
[1754194999381,4.71443096,113770.0,113760.0,0.582408]
[1754194999738,4.71443096,113770.0,113760.0,0.584518]
[1754195001438,0.55848496,113770.0,113760.0,0.584518]
[1754195001637,4.71443096,113770.0,113760.0,0.584518]
[1754195002021,4.19161171,113770.0,113760.0,0.584518]
[1754195002436,4.71443096,113770.0,113760.0,0.584518]
[1754195010344,4.19161171,113770.0,113760.0,0.584518]
[1754195010541,4.71443096,113770.0,113760.0,0.584518]
[1754195011564,4.19161171,113770.0,113760.0,0.584518]
[1754195011971,4.71443096,113770.0,113760.0,0.584518]
[1754195019063,4.19161171,113770.0,113760.0,0.584518]
[1754195024563,0.03566571,113770.0,113760.0,0.584518]
[1754195024772,4.155946,113770.0,113760.0,0.584518]
[1754195027456,3.951321,113770.0,113760.0,0.584518]
[1754195028458,0.02998036,113770.0,113760.0,0.584518]
[1754195028989,3.951321,113770.0,113760.0,0.584518]
[1754195033070,0.0304482,113770.0,113760.0,0.584518]
[1754195033425,0.66953925,113780.0,113760.0,0.584518]
[1754195033643,3.951321,113770.0,113760.0,0.451238]
[1754195033884,3.951321,113770.0,113760.0,0.584478]
[1754195034309,0.13324,113780.0,113760.0,1.12474627]
[1754195034523,3.951321,113770.0,113760.0,0.96284627]
[1754195034741,0.65605925,113780.0,113760.0,1.06965027]
[1754195034991,3.741335,113770.0,113760.0,0.96284527]
[1754195035461,3.741335,113770.0,113760.0,1.06965027]
[1754195035901,0.03032055,113770.0,113760.0,1.09519027]
[1754195036118,0.03032055,113770.0,113760.0,1.12162527]
[1754195036328,3.741335,113770.0,113760.0,1.12162527]
[1754195036675,3.741335,113770.0,113760.0,1.12262527]
[1754195037446,3.741335,113770.0,113760.0,1.12162527]
[1754195037686,3.741335,113770.0,113760.0,0.59880602]
[1754195038500,3.741335,113770.0,113760.0,0.59980602]
[1754195039778,0.03033494,113770.0,113760.0,0.59980602]
[1754195039955,1.05315419,113770.0,113760.0,0.59980602]
[1754195040193,0.52281925,113770.0,113760.0,0.59980602]
[1754195044228,4.76415425,113770.0,113760.0,0.59980602]
[1754195044653,0.52281925,113770.0,113760.0,0.59980602]
[1754195045165,0.53030455,113770.0,113760.0,0.59980602]
[1754195045628,1.0531238,113770.0,113760.0,0.59980602]
[1754195045840,0.5531238,113770.0,113760.0,0.59980602]
[1754195051023,0.03030455,113770.0,113760.0,0.59980602]
[1754195051224,0.52281925,113770.0,113760.0,0.59980602]
[1754195051962,0.55386943,113770.0,113760.0,0.59980602]
[1754195052526,0.03105018,113770.0,113760.0,0.59980602]
[1754195052950,3.741335,113770.0,113760.0,0.59980602]
[1754195053348,3.75509678,113770.0,113760.0,0.59980602]
[1754195053581,0.01376178,113770.0,113760.0,0.59980602]
[1754195054789,0.53658103,113770.0,113760.0,0.59980602]
[1754195057054,0.56622698,113770.0,113760.0,0.59980602]
[1754195057707,0.5524652,113770.0,113760.0,0.59980602]
[1754195058609,0.02964595,113770.0,113760.0,0.59980602]
[1754195058902,0.65605925,113780.0,113760.0,0.59980602]
[1754195059080,3.741335,113770.0,113760.0,0.59980602]
[1754195059283,3.741335,113770.0,113760.0,0.57337102]
[1754195059507,3.741335,113770.0,113760.0,0.59980702]
[1754195059677,3.741335,113770.0,113760.0,0.59880702]
[1754195059876,3.741335,113770.0,113760.0,0.59780702]
[1754195060176,3.7550969,113770.0,113760.0,0.59780702]
[1754195060382,0.0137619,113770.0,113760.0,0.59780702]
[1754195061432,0.04469046,113770.0,113760.0,0.59880702]
[1754195061642,0.04469046,113770.0,113760.0,0.59980702]
[1754195067415,0.03092856,113770.0,113760.0,0.59980702]
[1754195067720,3.741335,113770.0,113760.0,0.59980702]
[1754195070255,3.75509668,113770.0,113760.0,0.59980702]
[1754195070464,0.01376168,113770.0,113760.0,0.59980702]
[1754195070626,0.04427689,113770.0,113760.0,0.59980702]
[1754195071052,0.04427689,113770.0,113760.0,1.12262627]
[1754195073356,0.04427689,113770.0,113760.0,0.59980702]
[1754195077094,4.32191114,113770.0,113760.0,0.161636]
[1754195077309,4.30814946,113770.0,113760.0,0.1352]
[1754195079278,4.30814946,113770.0,113760.0,0.002]
[1754195080156,4.32191218,113770.0,113760.0,0.002]
[1754195083653,0.58057718,113770.0,113760.0,0.002]
[1754195083883,4.32191218,113770.0,113760.0,0.002]
[1754195084829,0.56709718,113770.0,113760.0,0.002]
[1754195085020,4.30843218,113770.0,113760.0,0.002]
[1754195085490,4.32191218,113770.0,113760.0,0.002]
[1754195086260,4.30843218,113770.0,113760.0,0.002]
[1754195086898,0.56709718,113770.0,113760.0,0.002]
[1754195087119,4.30843218,113770.0,113760.0,0.002]
[1754195087735,4.30843218,113770.0,113760.0,0.02677]
[1754195088976,4.29466946,113770.0,113760.0,0.02677]
[1754195090831,4.42786946,113770.0,113760.0,0.02677]
[1754195091848,0.70029707,113770.0,113760.0,0.02677]
[1754195092047,4.44163207,113770.0,113760.0,0.02677]
[1754195093176,4.44163207,113770.0,113760.0,0.002]
[1754195093377,4.45511207,113770.0,113760.0,0.002]
[1754195094161,4.97793132,113770.0,113760.0,0.002]
[1754195094380,4.48029889,113770.0,113760.0,0.342]
[1754195095211,0.73896389,113770.0,113760.0,0.342]
[1754195095413,4.48029889,113770.0,113760.0,0.342]
[1754195097854,4.45511207,113770.0,113760.0,0.342]
[1754195098261,0.71377707,113770.0,113760.0,0.342]
[1754195098539,4.45511207,113770.0,113760.0,0.342]
[1754195098946,4.45511207,113770.0,113760.0,0.002]
[1754195100303,0.71377707,113770.0,113760.0,0.002]
[1754195100561,3.93229282,113770.0,113760.0,0.002]
[1754195100919,4.45511207,113770.0,113760.0,0.002]
[1754195102395,0.71377707,113770.0,113760.0,0.002]
[1754195102630,4.52913388,113770.0,113760.0,0.002]
[1754195102807,5.08373797,113770.0,113760.0,0.002]
[1754195103008,5.10540004,113770.0,113760.0,0.002]
[1754195103989,4.05976154,113770.0,113760.0,0.002]
[1754195104189,5.03137823,113770.0,113760.0,0.002]
[1754195104863,5.03136374,113770.0,113760.0,0.002]
[1754195105068,3.741335,113760.0,113740.0,0.02421759]
[1754195105386,4.39783425,113750.0,113740.0,0.02714759]
[1754195105909,4.41159992,113750.0,113740.0,0.02714759]
[1754195106468,4.41159992,113750.0,113740.0,0.02814759]
[1754195107082,4.39783425,113750.0,113740.0,0.02814759]
[1754195108700,0.65649925,113750.0,113740.0,0.02814759]
[1754195108906,4.39783425,113750.0,113740.0,0.02814759]
[1754195110065,4.41159994,113750.0,113740.0,0.02814759]
[1754195110265,4.41159994,113750.0,113740.0,0.02714759]
[1754195110863,4.41159994,113750.0,113740.0,0.02914759]
[1754195111284,4.41159994,113750.0,113740.0,0.03014759]
[1754195114513,4.39783425,113750.0,113740.0,0.03014759]
[1754195114746,0.65649925,113750.0,113740.0,0.03014759]
[1754195115078,4.39783425,113750.0,113740.0,0.03014759]
[1754195116791,0.65649925,113750.0,113740.0,0.03014759]
[1754195117004,4.39783425,113750.0,113740.0,0.03014759]
[1754195117207,4.39783425,113750.0,113740.0,0.00597759]
[1754195117416,4.39783425,113750.0,113740.0,0.00304759]
[1754195117417,4.41131425,113750.0,113740.0,0.00304759]
[1754195117652,4.43776225,113750.0,113740.0,0.00304759]
[1754195118303,4.43776225,113750.0,113740.0,0.00104759]
[1754195118514,4.4613156,113750.0,113740.0,4.759e-05]
[1754195118725,4.49972338,113750.0,113740.0,4.759e-05]
[1754195119786,0.75838838,113750.0,113740.0,4.759e-05]
[1754195120048,4.49972338,113750.0,113740.0,4.759e-05]
[1754195120231,4.49972338,113750.0,113740.0,0.00104759]
[1754195122971,0.75838838,113750.0,113740.0,0.00104759]
[1754195123185,4.49972338,113750.0,113740.0,0.00104759]
[1754195124816,3.97690413,113750.0,113740.0,0.00104759]
[1754195125040,4.49972338,113750.0,113740.0,0.00104759]
[1754195127043,4.47617003,113750.0,113740.0,0.00104759]
[1754195127512,4.46240347,113750.0,113740.0,0.00104759]
[1754195128004,4.46241036,113750.0,113740.0,0.00104759]
[1754195128180,4.48135459,113750.0,113740.0,0.00104759]
[1754195129554,4.46787459,113750.0,113740.0,0.00104759]
[1754195130336,0.74030658,113750.0,113740.0,0.00104759]
[1754195130750,4.48164158,113750.0,113740.0,0.00104759]
[1754195131499,4.48164556,113750.0,113740.0,0.00104759]
[1754195132096,4.48164556,113750.0,113740.0,0.02365759]
[1754195132253,0.74031056,113750.0,113740.0,0.02365759]
[1754195132459,4.48164556,113750.0,113740.0,0.02365759]
[1754195133322,0.74031056,113750.0,113740.0,0.02365759]
[1754195133558,4.45699347,113750.0,113740.0,0.02365759]
[1754195133846,4.48168861,113750.0,113740.0,0.02365759]
[1754195134794,4.46792162,113750.0,113740.0,0.02365759]
[1754195135302,0.72658662,113750.0,113740.0,0.02365759]
[1754195135531,4.46792162,113750.0,113740.0,0.02365759]
[1754195136151,4.46792162,113750.0,113740.0,0.02662759]
[1754195136351,0.72658662,113750.0,113740.0,0.02662759]
[1754195136703,4.46792162,113750.0,113740.0,0.02662759]
[1754195137566,4.48168845,113750.0,113740.0,0.02662759]
[1754195137823,3.9588692,113750.0,113740.0,0.02662759]
[1754195137999,4.48168845,113750.0,113740.0,0.02662759]
[1754195141575,3.741335,113750.0,113740.0,0.02662759]
[1754195141774,4.27792067,113750.0,113740.0,0.02662759]
[1754195142806,4.41136067,113750.0,113740.0,0.02662759]
[1754195145020,4.39759425,113750.0,113740.0,0.02662759]
[1754195147958,4.41136069,113750.0,113740.0,0.02662759]
[1754195153298,0.67002569,113750.0,113740.0,0.02662759]
[1754195153500,4.41136069,113750.0,113740.0,0.02662759]
[1754195153712,4.43035198,113750.0,113740.0,0.02662759]
[1754195155013,0.68901698,113750.0,113740.0,0.02662759]
[1754195155239,4.43035198,113750.0,113740.0,0.02662759]
[1754195155652,4.41658554,113750.0,113740.0,0.02662759]
[1754195156356,0.67525054,113750.0,113740.0,0.02662759]
[1754195156498,4.41658554,113750.0,113740.0,0.02662759]
[1754195158265,4.43035199,113750.0,113740.0,0.02662759]
[1754195158474,4.45389672,113750.0,113740.0,0.02662759]
[1754195158631,4.45389672,113750.0,113740.0,0.00104759]
[1754195158826,4.64320089,113750.0,113740.0,0.00104759]
[1754195159043,5.16602014,113750.0,113740.0,0.00104759]
[1754195159243,5.19247114,113750.0,113740.0,0.00104759]
[1754195160069,5.19247114,113750.0,113740.0,4.759e-05]
[1754195160248,4.66965189,113750.0,113740.0,4.759e-05]
[1754195160700,5.19447114,113750.0,113740.0,4.759e-05]
[1754195160911,4.67165189,113750.0,113740.0,4.759e-05]
[1754195161127,0.52281925,113730.0,113720.0,0.02369759]